fUSD/lending_fUSD_20260512
["ID","MTS","AMOUNT","RATE_DAILY","PERIOD"]
[422127104,1778593876000,-151.0,0.0002,2]
[422127105,1778593918000,-151.0,0.00021,2]
[422127106,1778593991000,162.27,0.000273,120]
[422127107,1778594004000,-259.0,0.0002,2]
[422127109,1778594047000,-4732.81,0.00020548,2]
[422127111,1778594069000,-4732.81,0.00020548,2]
[422127110,1778594069000,-4732.81,0.00020548,2]
[422127113,1778594069000,-4732.81,0.00020548,2]
[422127114,1778594069000,-4732.81,0.00020548,2]
[422127112,1778594069000,-4732.81,0.00020548,2]
[422127118,1778594130000,-206.66,0.00011765,2]
[422127122,1778594507000,-206.66,0.00012359,2]
[422127127,1778594560000,-206.66,0.00014739,2]
[422127128,1778594560000,-1173.36,0.00015,2]
[422127126,1778594560000,-206.66,0.00014144,2]
[422127125,1778594560000,-206.66,0.00013549,2]
[422127124,1778594560000,-206.66,0.00012954,2]
[422127129,1778594561000,-206.66,0.00015,2]
[422127130,1778594561000,-206.66,0.00015,2]
[422127131,1778594561000,-206.66,0.00015,2]
[422127132,1778594561000,-206.66,0.00015,2]
[422127133,1778594561000,-206.66,0.00015,2]
[422127138,1778594594000,-500.0,0.00014999,2]
[422127139,1778594594000,-391.84814714,0.00014999,2]
[422127137,1778594594000,-308.15185286,0.00014999,2]
[422127135,1778594594000,-500.0,0.00014999,2]
[422127136,1778594594000,-500.0,0.00014999,2]
[422127134,1778594594000,-300.0,0.00014998,2]
[422127140,1778594635000,-108.15185286,0.00014999,2]
[422127141,1778594635000,-500.0,0.00014999,2]
[422127144,1778594635000,-500.0,0.00014999,2]
[422127143,1778594635000,-500.0,0.00014999,2]
[422127145,1778594635000,-500.0,0.00014999,2]
[422127142,1778594635000,-500.0,0.00014999,2]
[422127158,1778594636000,-500.0,0.00014999,2]
[422127157,1778594636000,-500.0,0.00014999,2]
[422127159,1778594636000,-500.0,0.00014999,2]
[422127154,1778594636000,-323.83114301,0.00014999,2]
[422127155,1778594636000,-500.0,0.00014999,2]
[422127156,1778594636000,-500.0,0.00014999,2]
[422127152,1778594636000,-500.0,0.00014999,2]
[422127151,1778594636000,-500.0,0.00014999,2]
[422127150,1778594636000,-500.0,0.00014999,2]
[422127149,1778594636000,-500.0,0.00014999,2]
[422127148,1778594636000,-500.0,0.00014999,2]
[422127147,1778594636000,-500.0,0.00014999,2]
[422127146,1778594636000,-500.0,0.00014999,2]
[422127160,1778594636000,-500.0,0.00014999,2]
[422127153,1778594636000,-500.0,0.00014999,2]
[422127161,1778594636000,-500.0,0.00014999,2]
[422127171,1778594636000,-500.0,0.00014999,2]
[422127163,1778594636000,-599.67220562,0.00014999,2]
[422127177,1778594636000,-500.0,0.00014999,2]
[422127178,1778594636000,-500.0,0.00014999,2]
[422127176,1778594636000,-500.0,0.00014999,2]
[422127173,1778594636000,-500.0,0.00014999,2]
[422127162,1778594636000,-500.0,0.00014999,2]
[422127174,1778594636000,-500.0,0.00014999,2]
[422127172,1778594636000,-593.0223428,0.00014999,2]
[422127175,1778594636000,-500.0,0.00014999,2]
[422127169,1778594636000,-500.0,0.00014999,2]
[422127168,1778594636000,-500.0,0.00014999,2]
[422127167,1778594636000,-500.0,0.00014999,2]
[422127166,1778594636000,-500.0,0.00014999,2]
[422127164,1778594636000,-500.0,0.00014999,2]
[422127165,1778594636000,-500.0,0.00014999,2]
[422127170,1778594636000,-500.0,0.00014999,2]
[422127181,1778594637000,-500.0,0.00014999,2]
[422127182,1778594637000,-255.90884634,0.00014999,2]
[422127180,1778594637000,-515.41360937,0.00014999,2]
[422127179,1778594637000,-500.0,0.00014999,2]
[422127183,1778594655000,-244.09115366,0.00014999,2]
[422127184,1778594655000,-500.0,0.00014999,2]
[422127187,1778594655000,-109.90884634,0.00014999,2]
[422127186,1778594655000,-500.0,0.00014999,2]
[422127185,1778594655000,-500.0,0.00014999,2]
[422127191,1778594868000,-166.7,9.368e-05,2]
[422127192,1778594868000,-120.42938783,9.842e-05,2]
[422127195,1778594884000,-166.7,0.00010316,2]
[422127196,1778594884000,-37329.10619351,0.000107,2]
[422127193,1778594884000,-46.27061217,9.842e-05,2]
[422127194,1778594884000,-178.92319432,0.0001,2]
[422127198,1778594945000,-208.03499449,0.00010646,2]
[422127217,1778595032000,-856.08682692,0.000107,2]
[422127218,1778595032000,-410.69112501,0.000107,2]
[422127215,1778595032000,-591.86802884,0.000107,2]
[422127216,1778595032000,-717.79063966,0.000107,2]
[422127213,1778595032000,-3031.8631592,0.000107,2]
[422127210,1778595032000,-96117.52047711,0.000107,2]
[422127208,1778595032000,-300.0,0.00010699,2]
[422127205,1778595032000,-557.6907513,0.00010645,2]
[422127207,1778595032000,-150.0,0.00010699,2]
[422127219,1778595032000,-166.46575633,0.00010789,2]
[422127212,1778595032000,-546.17890492,0.000107,2]
[422127211,1778595032000,-487.38503545,0.000107,2]
[422127206,1778595032000,-209.6494197,0.00010645,2]
[422127209,1778595032000,-1200.0,0.00010699,2]
[422127220,1778595032000,-0.23424367,0.00010789,2]
[422127223,1778595032000,-66.36575633,0.00011737,2]
[422127236,1778595032000,-636.65095903,0.00014899,2]
[422127224,1778595032000,-188.63424367,0.00011737,2]
[422127222,1778595032000,-166.7,0.00011737,2]
[422127225,1778595032000,-420.0,0.00011761,2]
[422127226,1778595032000,-166.7,0.00012211,2]
[422127227,1778595032000,-166.7,0.00012684,2]
[422127228,1778595032000,-178.0,0.00012871,2]
[422127229,1778595032000,-587.0,0.00012928,2]
[422127221,1778595032000,-166.7,0.00011263,2]
[422127234,1778595032000,-166.7,0.00014579,2]
[422127235,1778595032000,-571.43984637,0.00014899,2]
[422127232,1778595032000,-166.7,0.00014106,2]
[422127233,1778595032000,-823.0,0.0001421,2]
[422127230,1778595032000,-166.7,0.00013158,2]
[422127231,1778595032000,-166.7,0.00013632,2]
[422127242,1778595040000,-2552.47941264,0.00014899,2]
[422127244,1778595040000,-4166.5479,0.000149,2]
[422127245,1778595040000,-2500.0,0.000149,2]
[422127249,1778595040000,-333.26194966,0.000149,2]
[422127246,1778595040000,-2021.92860055,0.000149,2]
[422127248,1778595040000,-265.96,0.000149,2]
[422127247,1778595040000,-1644.35942944,0.000149,2]
[422127243,1778595040000,-10000.0,0.000149,2]
[422127266,1778595041000,-500.0,0.00014999,2]
[422127274,1778595041000,-500.0,0.00014999,2]
[422127273,1778595041000,-500.0,0.00014999,2]
[422127264,1778595041000,-260.78952656,0.00014999,2]
[422127268,1778595041000,-500.0,0.00014999,2]
[422127269,1778595041000,-500.0,0.00014999,2]
[422127272,1778595041000,-500.0,0.00014999,2]
[422127270,1778595041000,-187.72094015,0.00014999,2]
[422127271,1778595041000,-500.0,0.00014999,2]
[422127275,1778595041000,-500.0,0.00014999,2]
[422127276,1778595041000,-500.0,0.00014999,2]
[422127277,1778595041000,-500.0,0.00014999,2]
[422127267,1778595041000,-500.0,0.00014999,2]
[422127265,1778595041000,-500.0,0.00014999,2]
[422127260,1778595041000,-469.77054394,0.00014999,2]
[422127278,1778595041000,-500.0,0.00014999,2]
[422127257,1778595041000,-500.0,0.00014999,2]
[422127261,1778595041000,-500.0,0.00014999,2]
[422127263,1778595041000,-500.0,0.00014999,2]
[422127259,1778595041000,-500.0,0.00014999,2]
[422127256,1778595041000,-105655.7531427,0.00014999,2]
[422127262,1778595041000,-500.0,0.00014999,2]
[422127254,1778595041000,-500.0,0.00014999,2]
[422127255,1778595041000,-5621.8728196,0.00014999,2]
[422127253,1778595041000,-377.76546935,0.000149,2]
[422127252,1778595041000,-159.77478987,0.000149,2]
[422127251,1778595041000,-6798.0986,0.000149,2]
[422127250,1778595041000,-1882.54157503,0.000149,2]
[422127258,1778595041000,-226.68180011,0.00014999,2]
[422127280,1778595041000,-500.0,0.00014999,2]
[422127299,1778595041000,-293.51592497,0.00015,2]
[422127288,1778595041000,-500.0,0.00014999,2]
[422127313,1778595041000,-27055.09977875,0.00015,2]
[422127311,1778595041000,-1738.835448,0.00015,2]
[422127310,1778595041000,-1033.56296967,0.00015,2]
[422127309,1778595041000,-528.86475071,0.00015,2]
[422127312,1778595041000,-3284.10974202,0.00015,2]
[422127307,1778595041000,-999.8506,0.00015,2]
[422127308,1778595041000,-1021.88178341,0.00015,2]
[422127306,1778595041000,-592.9220449,0.00015,2]
[422127304,1778595041000,-1295.76541168,0.00015,2]
[422127305,1778595041000,-1400.27423297,0.00015,2]
[422127282,1778595041000,-500.0,0.00014999,2]
[422127301,1778595041000,-1168.49851213,0.00015,2]
[422127300,1778595041000,-1913.48408231,0.00015,2]
[422127303,1778595041000,-1572.83667428,0.00015,2]
[422127297,1778595041000,-576.000008,0.00015,2]
[422127285,1778595041000,-500.0,0.00014999,2]
[422127286,1778595041000,-500.0,0.00014999,2]
[422127298,1778595041000,-993.71667762,0.00015,2]
[422127290,1778595041000,-500.0,0.00014999,2]
[422127289,1778595041000,-500.0,0.00014999,2]
[422127284,1778595041000,-500.0,0.00014999,2]
[422127287,1778595041000,-500.0,0.00014999,2]
[422127296,1778595041000,-596.79223375,0.00015,2]
[422127295,1778595041000,-396646.60303746,0.00015,2]
[422127294,1778595041000,-17045.44356612,0.00015,2]
[422127293,1778595041000,-500.0,0.00014999,2]
[422127291,1778595041000,-500.0,0.00014999,2]
[422127292,1778595041000,-500.0,0.00014999,2]
[422127302,1778595041000,-2073.11266805,0.00015,2]
[422127386,1778595043000,-265.96,0.00015,2]
[422127385,1778595043000,-15003.889144,0.00015,2]
[422127384,1778595043000,-327410.44180953,0.00015,2]
[422127383,1778595043000,-10816.08357795,0.00015,2]
[422127382,1778595043000,-1474.69794025,0.00015,2]
[422127395,1778595046000,-337.36,0.00015,2]
[422127406,1778595277000,151.0,0.00025753,120]
[422127407,1778595278000,151.0,0.00025753,120]
[422127408,1778595279000,151.0,0.00025753,120]
[422127409,1778595281000,151.0,0.00025753,120]
[422127411,1778595282000,244.45,0.00025753,120]
[422127410,1778595282000,151.0,0.00025753,120]
[422127417,1778595812000,153.19,7.586e-05,2]
[422127416,1778595812000,153.19,7.156e-05,2]
[422127418,1778595813000,153.19,8.015e-05,2]
[422127419,1778595814000,153.19,8.445e-05,2]
[422127421,1778595828000,-49.26690039,9.304e-05,2]
[422127420,1778595828000,-153.19,8.875e-05,2]
[422127436,1778596233000,-153.19,0.00013172,2]
[422127439,1778596233000,-1115.82,0.00013268,2]
[422127438,1778596233000,-150.0,0.0001319,2]
[422127440,1778596233000,-15.65830714,0.00013387,2]
[422127444,1778596233000,-150.0,0.00013488,2]
[422127442,1778596233000,-160.77743921,0.00013487,2]
[422127443,1778596233000,-150.0,0.00013488,2]
[422127445,1778596233000,-150.0,0.00013488,2]
[422127446,1778596233000,-150.0,0.00013488,2]
[422127441,1778596233000,-1380.28169286,0.00013387,2]
[422127437,1778596233000,-233.48,0.00013172,2]
[422127430,1778596233000,-153.19,0.00011023,2]
[422127434,1778596233000,-153.19,0.00012742,2]
[422127429,1778596233000,-154.09,0.00010694,2]
[422127447,1778596233000,-150.0,0.00013488,2]
[422127432,1778596233000,-153.19,0.00011883,2]
[422127433,1778596233000,-153.19,0.00012312,2]
[422127431,1778596233000,-153.19,0.00011453,2]
[422127428,1778596233000,-153.19,0.00010594,2]
[422127427,1778596233000,-153.19,0.00010164,2]
[422127426,1778596233000,-233.09174103,0.0001,2]
[422127424,1778596233000,-103.92309961,9.304e-05,2]
[422127435,1778596233000,-179.05685222,0.00013072,2]
[422127449,1778596233000,-2000.0,0.00013555,2]
[422127425,1778596233000,-153.19,9.734e-05,2]
[422127459,1778596233000,-166.81,0.00014041,2]
[422127448,1778596233000,-300.0,0.00013554,2]
[422127488,1778596233000,-4703.22031958,0.00014722,2]
[422127490,1778596233000,-19932.88963366,0.00014723,2]
[422127494,1778596233000,-99046.7044,0.00014733,2]
[422127492,1778596233000,-787.53221972,0.00014732,2]
[422127486,1778596233000,-292.5,0.00014722,2]
[422127483,1778596233000,-4703.22031964,0.000147,2]
[422127469,1778596233000,-300.0,0.000144,5]
[422127467,1778596233000,-166.81,0.00014384,2]
[422127480,1778596233000,-4166.5479,0.00014633,2]
[422127482,1778596233000,-1500.0,0.000147,5]
[422127477,1778596233000,-1100.0,0.000146,5]
[422127471,1778596233000,-150.0,0.00014487,2]
[422127463,1778596233000,-180.38,0.00014277,2]
[422127478,1778596233000,-179.05685222,0.00014633,2]
[422127465,1778596233000,-1141.91,0.00014349,2]
[422127461,1778596233000,-166.81,0.00014212,2]
[422127450,1778596233000,-153.19,0.00013601,2]
[422127455,1778596233000,-250.0,0.00014,2]
[422127454,1778596233000,-150.0,0.00013987,2]
[422127457,1778596233000,-153.19,0.00014031,2]
[422127451,1778596233000,-166.81,0.00013699,2]
[422127452,1778596233000,-166.81,0.0001387,2]
[422127474,1778596233000,-700.0,0.000145,5]
[422127453,1778596233000,-150.0,0.00013987,2]
[422127516,1778596234000,-23352.1538,0.000148,2]
[422127528,1778596234000,-251.84364622,0.000148,2]
[422127514,1778596234000,-5000.0,0.000148,2]
[422127530,1778596234000,-8748.66150304,0.000148,2]
[422127536,1778596234000,-233.48,0.00014819,2]
[422127535,1778596234000,-4703.22031958,0.00014811,2]
[422127538,1778596234000,-500.0,0.00014849,2]
[422127547,1778596234000,-500.0,0.00014849,2]
[422127518,1778596234000,-2000.0,0.000148,2]
[422127532,1778596234000,-1900.0,0.000148,5]
[422127521,1778596234000,-500.0,0.000148,2]
[422127496,1778596234000,-4867.0505,0.00014733,2]
[422127524,1778596234000,-789.53782376,0.000148,2]
[422127527,1778596234000,-227.5447578,0.000148,2]
[422127510,1778596234000,-157.497,0.00014799,2]
[422127512,1778596234000,-625.36046972,0.000148,2]
[422127508,1778596234000,-1351.66,0.00014799,2]
[422127504,1778596234000,-4703.22031958,0.00014767,2]
[422127502,1778596234000,-10428.75839148,0.00014766,2]
[422127506,1778596234000,-4703.22031958,0.00014789,2]
[422127500,1778596234000,-2500.0,0.0001475,2]
[422127498,1778596234000,-4703.22031958,0.00014744,2]
[422127539,1778596234000,-500.0,0.00014849,2]
[422127523,1778596234000,-168.84673618,0.000148,2]
[422127546,1778596234000,-500.0,0.00014849,2]
[422127548,1778596234000,-500.0,0.00014849,2]
[422127542,1778596234000,-500.0,0.00014849,2]
[422127565,1778596234000,-12836.39336104,0.0001485,2]
[422127564,1778596234000,-25760.39182045,0.0001485,2]
[422127566,1778596234000,-3554.2461758,0.0001485,2]
[422127562,1778596234000,-500.0,0.00014849,2]
[422127563,1778596234000,-500.00000001,0.00014849,2]
[422127560,1778596234000,-500.0,0.00014849,2]
[422127561,1778596234000,-175.74380321,0.00014849,2]
[422127559,1778596234000,-500.0,0.00014849,2]
[422127556,1778596234000,-500.0,0.00014849,2]
[422127537,1778596234000,-4703.22031958,0.00014833,2]
[422127557,1778596234000,-500.0,0.00014849,2]
[422127553,1778596234000,-500.0,0.00014849,2]
[422127558,1778596234000,-500.0,0.00014849,2]
[422127541,1778596234000,-500.0,0.00014849,2]
[422127543,1778596234000,-500.0,0.00014849,2]
[422127551,1778596234000,-500.0,0.00014849,2]
[422127540,1778596234000,-500.0,0.00014849,2]
[422127544,1778596234000,-500.0,0.00014849,2]
[422127545,1778596234000,-500.0,0.00014849,2]
[422127554,1778596234000,-500.0,0.00014849,2]
[422127555,1778596234000,-500.0,0.00014849,2]
[422127550,1778596234000,-500.0,0.00014849,2]
[422127552,1778596234000,-500.0,0.00014849,2]
[422127549,1778596234000,-500.0,0.00014849,2]
[422127574,1778596238000,-331.39424204,0.00014811,2]
[422127571,1778596238000,-2384.91899349,0.00014811,2]
[422127570,1778596238000,-682.45837827,0.00014811,2]
[422127572,1778596238000,-1187.75083997,0.00014811,2]
[422127573,1778596238000,-3778.83298167,0.00014811,2]
[422127580,1778596238000,-1051.16,0.0001485,2]
[422127577,1778596238000,-27055.09977875,0.0001485,2]
[422127576,1778596238000,-116.69393242,0.0001485,2]
[422127578,1778596238000,-3985.08502413,0.0001485,2]
[422127579,1778596238000,-628.92228575,0.0001485,2]
[422127582,1778596238000,-1006.13986693,0.00014822,2]
[422127575,1778596238000,-383.30606758,0.00014811,2]
[422127589,1778596240000,-527.34709227,0.00014822,2]
[422127590,1778596241000,-410.295,0.00014822,2]
[422127605,1778596247000,-6612.26957459,0.00014822,2]
[422127606,1778596247000,-192.60996923,0.00014822,2]
[422127607,1778596247000,-313.39003077,0.00014833,2]
[422127616,1778596873000,166.43,6.889e-05,2]
[422127643,1778597433000,-1200.0,0.00013664,2]
[422127635,1778597433000,-150.0,0.00013463,2]
[422127637,1778597433000,-150.0,0.00013513,2]
[422127640,1778597433000,-150.0,0.00013612,2]
[422127667,1778597433000,-150.0,0.00014008,2]
[422127662,1778597433000,-150.0,0.00013909,2]
[422127649,1778597433000,-3683.08,0.00013734,2]
[422127665,1778597433000,-153.05,0.00013963,2]
[422127653,1778597433000,-150.0,0.00013761,2]
[422127664,1778597433000,-150.0,0.00013958,2]
[422127647,1778597433000,-300.0,0.00013733,2]
[422127660,1778597433000,-208.2157166,0.00013858,2]
[422127630,1778597433000,-150.0,0.00013389,2]
[422127658,1778597433000,-162.49,0.00013836,2]
[422127666,1778597433000,-250.0,0.00014,2]
[422127654,1778597433000,-150.0,0.00013761,2]
[422127631,1778597433000,-150.0,0.00013389,2]
[422127633,1778597433000,-150.0,0.00013414,2]
[422127634,1778597433000,-150.0,0.00013429,2]
[422127622,1778597433000,-1159.71,0.0001313,2]
[422127627,1778597433000,-158.34,0.00013351,2]
[422127626,1778597433000,-99.28311759,0.00013326,2]
[422127623,1778597433000,-169.42,0.00013142,2]
[422127628,1778597433000,-150.0,0.00013364,2]
[422127624,1778597433000,-200.0,0.00013153,2]
[422127629,1778597433000,-150.0,0.00013389,2]
[422127621,1778597433000,-390.37,0.0001313,2]
[422127625,1778597433000,-400.71688241,0.00013326,2]
[422127639,1778597433000,-150.0,0.00013562,2]
[422127642,1778597433000,-150.0,0.00013661,2]
[422127648,1778597433000,-300.0,0.00013733,2]
[422127641,1778597433000,-182.92,0.00013632,2]
[422127632,1778597433000,-150.0,0.00013389,2]
[422127636,1778597433000,-166.43,0.00013509,2]
[422127638,1778597433000,-186.11,0.00013557,2]
[422127663,1778597433000,-167.57,0.00013927,2]
[422127646,1778597433000,-150.0,0.00013711,2]
[422127668,1778597433000,-150.0,0.00014057,2]
[422127672,1778597433000,-150.0,0.00014133,2]
[422127685,1778597433000,-542.53523403,0.00014254,2]
[422127699,1778597433000,-158.74104244,0.0001432,2]
[422127703,1778597433000,-1436058.51654071,0.00014321,2]
[422127701,1778597433000,-500.0,0.0001432,2]
[422127687,1778597433000,-7340.18092332,0.00014304,2]
[422127705,1778597433000,-10537.25891184,0.00014321,2]
[422127683,1778597433000,-7340.1809234,0.00014254,2]
[422127652,1778597433000,-150.0,0.0001376,2]
[422127695,1778597433000,-500.0,0.0001432,2]
[422127693,1778597433000,-255.82660298,0.0001432,2]
[422127708,1778597433000,-24551.81203178,0.00014321,2]
[422127710,1778597433000,-102854.78046598,0.00014321,2]
[422127697,1778597433000,-500.0,0.0001432,2]
[422127716,1778597433000,-2729.88370083,0.00014321,2]
[422127714,1778597433000,-500.0,0.0001432,2]
[422127690,1778597433000,-219.76976508,0.00014311,2]
[422127671,1778597433000,-150.0,0.00014133,2]
[422127689,1778597433000,-150.0,0.00014305,2]
[422127676,1778597433000,-167.57,0.00014155,2]
[422127657,1778597433000,-150.0,0.0001381,2]
[422127659,1778597433000,-160.0,0.00013858,2]
[422127661,1778597433000,-150.0,0.00013859,2]
[422127650,1778597433000,-2500.0,0.00013749,2]
[422127656,1778597433000,-2630.17,0.00013781,2]
[422127645,1778597433000,-167.57,0.00013699,2]
[422127651,1778597433000,-163.34,0.00013749,2]
[422127644,1778597433000,-2000.0,0.00013665,2]
[422127678,1778597433000,-500.0,0.00014155,2]
[422127670,1778597433000,-150.0,0.00014107,2]
[422127669,1778597433000,-3683.08,0.00014077,2]
[422127686,1778597433000,-150.0,0.00014255,2]
[422127674,1778597433000,-150.0,0.00014133,2]
[422127680,1778597433000,-150.0,0.00014156,2]
[422127682,1778597433000,-150.0,0.00014206,2]
[422127655,1778597433000,-150.0,0.00013761,2]
[422127684,1778597433000,-2738.60774886,0.00014254,2]
[422127741,1778597437000,-88.58545073,0.0001432,2]
[422127739,1778597437000,-250.02245017,0.0001432,2]
[422127740,1778597437000,-249.97754983,0.0001432,2]
[422127744,1778597437000,-178.38544273,0.0001432,2]
[422127742,1778597437000,-304.0,0.0001432,2]
[422127743,1778597437000,-107.41454927,0.0001432,2]
[422127756,1778597438000,-500.0,0.0001432,2]
[422127748,1778597438000,-500.0,0.0001432,2]
[422127763,1778597438000,-500.0,0.0001432,2]
[422127761,1778597438000,-500.0,0.0001432,2]
[422127771,1778597438000,-14255.76064616,0.00014321,2]
[422127766,1778597438000,-500.0,0.0001432,2]
[422127762,1778597438000,-500.0,0.0001432,2]
[422127752,1778597438000,-500.0,0.0001432,2]
[422127755,1778597438000,-500.0,0.0001432,2]
[422127753,1778597438000,-500.0,0.0001432,2]
[422127745,1778597438000,-308.79130867,0.0001432,2]
[422127746,1778597438000,-500.0,0.0001432,2]
[422127747,1778597438000,-500.0,0.0001432,2]
[422127774,1778597438000,-793.44069354,0.00014321,2]
[422127759,1778597438000,-500.0,0.0001432,2]
[422127770,1778597438000,-500.0,0.0001432,2]
[422127750,1778597438000,-500.0,0.0001432,2]
[422127772,1778597438000,-271.55708419,0.00014321,2]
[422127757,1778597438000,-500.0,0.0001432,2]
[422127749,1778597438000,-500.0,0.0001432,2]
[422127769,1778597438000,-500.0,0.0001432,2]
[422127758,1778597438000,-500.0,0.0001432,2]
[422127768,1778597438000,-500.0,0.0001432,2]
[422127760,1778597438000,-500.0,0.0001432,2]
[422127754,1778597438000,-500.0,0.0001432,2]
[422127764,1778597438000,-500.0,0.0001432,2]
[422127775,1778597438000,-1295.76541352,0.00014321,2]
[422127751,1778597438000,-500.0,0.0001432,2]
[422127776,1778597438000,-1099.02435036,0.00014321,2]
[422127773,1778597438000,-569.8908467,0.00014321,2]
[422127767,1778597438000,-490.54782392,0.0001432,2]
[422127765,1778597438000,-500.0,0.0001432,2]
[422127785,1778597443000,-327.365286,0.00014321,2]
[422127781,1778597443000,-2479.56812918,0.00014321,2]
[422127783,1778597443000,-316.220239,0.00014321,2]
[422127784,1778597443000,-34753.75548311,0.00014321,2]
[422127782,1778597443000,-328269.1810886,0.00014321,2]
[422127787,1778597443000,-23771.10118,0.00014321,2]
[422127790,1778597443000,-400.00129797,0.00014321,2]
[422127788,1778597443000,-344.0,0.00014321,2]
[422127789,1778597443000,-134785.24333754,0.00014321,2]
[422127786,1778597443000,-3843.89820875,0.00014321,2]
[422127811,1778597445000,-11391.96828028,0.00014321,2]
[422127813,1778597446000,-1178.30638592,0.00014321,2]
[422127812,1778597446000,-3237.80242697,0.00014321,2]
[422127816,1778597450000,-391.9241332,0.00014321,2]
[422127815,1778597450000,-500.0,0.0001432,2]
[422127818,1778597450000,-99759.80577737,0.00014321,2]
[422127819,1778597450000,-459.74104032,0.00014321,2]
[422127817,1778597450000,-2593.09551559,0.00014321,2]
[422127834,1778598631000,-150.19379515,0.00012366,2]
[422127831,1778598631000,-150.0,0.00010099,2]
[422127830,1778598631000,-300.0,0.0001,2]
[422127832,1778598631000,-928.17418521,0.000119,2]
[422127833,1778598631000,-3070.20499937,0.000119,2]
[422127837,1778598631000,-500.0,0.00012603,2]
[422127836,1778598631000,-500.0,0.00012521,2]
[422127835,1778598631000,-500.0,0.00012466,2]
[422127838,1778598631000,-1200.0,0.00012642,2]
[422127839,1778598631000,-2000.0,0.00012643,2]
[422127841,1778598631000,-629.0,0.00012904,2]
[422127843,1778598631000,-152.43,0.00013033,2]
[422127842,1778598631000,-200.0,0.00012928,2]
[422127840,1778598631000,-500.0,0.00012685,2]
[422127847,1778598631000,-2496.85,0.00013312,2]
[422127852,1778598631000,-150.0,0.00013488,2]
[422127851,1778598631000,-150.0,0.00013488,2]
[422127846,1778598631000,-208.034994,0.00013244,2]
[422127848,1778598631000,-153.05,0.00013318,2]
[422127849,1778598631000,-775.04,0.00013349,2]
[422127850,1778598631000,-175.11,0.00013383,2]
[422127844,1778598631000,-300.0,0.00013243,2]
[422127845,1778598631000,-268.0,0.00013243,2]
[422127895,1778598632000,-500.0,0.0001412,2]
[422127892,1778598632000,-500.0,0.0001412,2]
[422127882,1778598632000,-500.0,0.0001412,2]
[422127894,1778598632000,-500.0,0.0001412,2]
[422127890,1778598632000,-500.0,0.0001412,2]
[422127885,1778598632000,-621.56020824,0.0001412,2]
[422127887,1778598632000,-500.0,0.0001412,2]
[422127888,1778598632000,-500.0,0.0001412,2]
[422127883,1778598632000,-500.0,0.0001412,2]
[422127893,1778598632000,-500.0,0.0001412,2]
[422127881,1778598632000,-500.0,0.0001412,2]
[422127891,1778598632000,-500.0,0.0001412,2]
[422127901,1778598632000,-444.65442274,0.0001412,2]
[422127900,1778598632000,-500.0,0.0001412,2]
[422127898,1778598632000,-458.35900992,0.0001412,2]
[422127897,1778598632000,-500.0,0.0001412,2]
[422127899,1778598632000,-275.1905511,0.0001412,2]
[422127902,1778598632000,-500.0,0.0001412,2]
[422127903,1778598632000,-500.0,0.0001412,2]
[422127904,1778598632000,-500.0,0.0001412,2]
[422127906,1778598632000,-500.0,0.0001412,2]
[422127909,1778598632000,-500.0,0.0001412,2]
[422127913,1778598632000,-500.0,0.0001412,2]
[422127905,1778598632000,-500.0,0.0001412,2]
[422127911,1778598632000,-500.0,0.0001412,2]